{"text_format":"1","workbook":"xlsx","n_sheets":32,"sheets":["MACRO","FICHE IDENTITE","ATTESTATION","SUIVI AVANT DIPLOME","EDUCATEUR","EDUCATEUR_P2","NON EDUCATEUR","FORMATION","EQUIVALENCE","VAE","FINALISATION FORMATION","FINALISATION EQUIVALENCE","FINALISATION VAE","J_LICENCE","J_PIECEIDENTITE","J_DIPLOMEEQUIVALENCE","J_Assistant","J_PSE1","J_ATTESTATIONPRESIDENT","J_ENF1","J_ENF2","J_ENF3","J_FORMCONTINUE","J_CERTIFICAT","J_BF1","J_SECURITE","J_TUTEUR","J_DIPLOME1","J_DIPLOME2","J_DIPLOME3","PARAMETRES","STRUCTURES"],"not_rendered":{"charts":0,"images":118,"macros":1,"external_links":0,"defined_names":174,"comments":0,"pivot_tables":0},"unopened":[],"bounds":{"document_bytes":16777216,"sheet_cells":100000,"rows_first":2000,"rows_last":500,"rows_between":2000,"halvings":0,"cell_chars":16384,"cell_head_chars":4096},"cells_cut":0,"cells_raw":0,"read":"whole","date_system":"1900"}

{"sheet":"MACRO","index":0,"n_rows":80,"n_cols":2,"rows_kept":80,"cut":false,"hidden":true,"merged":[[49,1,49,8],[61,1,61,8]]}
[]
[]
[]
[]
[]
[]
[]
[null,"ATTENTION LES MACROS NE SONT PAS ACTIVEES !"]
[]
[]
[]
["Pour lancer l'inscription au diplôme de Moniteur de la FFN, vous devez suivre la procédure suivante :"]
[]
["OU BIEN"]
["En haut de votre tableur, un avertissement de sécurité concernant les macros apparaît."]
["Vous devez en activer le contenu :"]
[]
[]
[]
[]
[]
["OU BIEN"]
["Vous devez activer vos macros manuellement en suivant ces étapes :"]
[]
["Etape 1 :","Sélectionner Fichier puis Options"]
[]
[]
[]
[]
[]
[]
[]
[]
[]
[]
[]
[]
[]
[]
[]
[]
[]
[]
[]
[]
[]
[]
[]
[]
["Etape 2 :","Sélectionner \"Centre de Gestion de la confidentialité\" puis à droite, \"Paramètres du Centre de gestion de la confidentialité\""]
[]
[]
[]
[]
[]
[]
[]
[]
[]
[]
[]
["Etape 3 :","Sélectionner \"Paramètres des macros\" puis à droite, \"désactiver les macros à l'exception des macros signées numériquement\""]
[]
[]
[]
[]
[]
[]
[]
[]
[]
[]
[]
[]
[]
[]
[]
["Etape 4 :","ENREGISTRER LE DOCUMENT"]
[]
["Ca y est, vos macros sont activées ! vous pouvez commencer l'inscription "]

{"sheet":"FICHE IDENTITE","index":1,"n_rows":36,"n_cols":6,"rows_kept":36,"cut":false,"hidden":false,"merged":[[28,4,28,5],[26,5,26,6],[26,7,26,8],[7,1,7,9],[9,1,9,9],[10,1,10,9],[13,5,13,6],[17,2,17,3],[13,3,13,4],[14,3,14,4],[15,3,15,4],[13,7,13,8],[35,2,35,3],[14,5,14,6],[15,5,15,6],[17,4,17,8],[18,4,18,8],[22,2,22,3],[24,2,24,3],[28,2,28,3],[20,2,20,3],[14,7,14,8],[15,7,15,8],[20,4,20,5],[22,4,22,6],[24,4,24,6],[26,3,26,4],[30,2,30,4]]}
[]
[null,"^$"]
[]
[]
[]
[]
[]
[null,"Fédération Française de Natation"]
[]
[null,"Dossier de demande"]
[null,"MONITEUR SPORTIF DE NATATION"]
[]
[]
[null,null,"NOM :",null,null,"Date de naissance :"]
[null,null,"Prénom :",null,null,"Ville de naissance :"]
[null,null,"Genre :",null,null,"Dpt de naissance (N°) :"]
[]
[null,null,"Adresse :"]
[]
[]
[null,null,"Code Postal :"]
[]
[null,null,"Ville :"]
[]
[null,null,"Club (en entier) :"]
[]
[null,null,"Tel :",null,null,"Courriel :"]
[]
[null,null,"Numéro de licence :"]
[]
[null,null,"Option choisie pour le diplôme :"]
[]
[]
[]
[]
[null,null,"Je souhaite (au choix) :"]

{"sheet":"ATTESTATION","index":2,"n_rows":45,"n_cols":7,"rows_kept":45,"cut":false,"hidden":true,"merged":[[44,2,44,3],[38,1,38,9],[44,7,44,8]]}
[]
[]
[]
[]
[]
[]
[]
[]
[]
[]
[]
[]
[]
[]
[]
[]
[]
[]
[]
[]
[]
[]
[]
[]
[]
[]
[]
[]
[]
[]
[]
[]
[]
[]
[]
[]
[]
[]
[null,"Attestation relative au suivi de l'insertion professionnelle"]
[]
[]
[]
[]
[]
[null,"Fait à :",null,null,null,null,"le "]

{"sheet":"SUIVI AVANT DIPLOME","index":3,"n_rows":32,"n_cols":2,"rows_kept":32,"cut":false,"hidden":true,"merged":[[6,1,6,9],[10,1,10,9],[24,1,24,9],[31,1,31,9],[25,2,25,8],[26,2,26,8],[27,2,27,8],[28,2,28,8],[29,2,29,8],[8,1,8,9]]}
[]
[]
[]
[]
[]
[null,"EDUCATEUR"]
[null,"Questionnaire relatif au suivi de l'insertion professionnelle avant l'obtention du diplôme"]
[]
[null,"DIPLOMES"]
[]
[null,"1- Diplôme(s) de la natation avant l'obtention du diplôme :"]
[]
[]
[]
[]
[]
[]
[]
[]
[]
[]
[]
[]
[]
[null,"2- Autres(s) diplôme(s) avec ou sans lien avec l'encadrement sportif professionnel ou bénévole (diplôme scolaires et universitaires, diplôme d'animation etc.)"]
[]
[]
[]
[]
[]
[]
[null,"3- Plus haut niveau de diplôme obtenu (selon la nomenclature nationale) (1) :"]

{"sheet":"EDUCATEUR","index":4,"n_rows":56,"n_cols":3,"rows_kept":56,"cut":false,"hidden":true,"merged":[[10,1,10,8],[19,1,19,9],[32,1,32,6],[6,1,6,9],[8,1,8,9],[32,7,32,8],[26,1,26,9],[28,3,28,9],[29,3,29,9],[30,3,30,9],[24,1,24,7]]}
[]
[]
[]
[]
[]
[]
[null,"Questionnaire relatif au suivi de l'insertion professionnelle avant l'obtention du diplôme (Educateur)"]
[]
[null,"SITUATION ET EXPERIENCES PROFESSIONNELLES"]
[]
[null,"1- Indiquez le nombre d'heures hebdomadaires réalisées au sein du club :"]
[]
[null,"2- Votre statut dans cette activité :"]
[]
[]
[]
[]
[]
[]
[null,"3- Le Moniteur Sportif de Natation peut être amené à exercer une ou plusieurs de ces trois fonctions : éducateur , entraîneur , responsable pédagogique . Parmi celles-ci, laquelle/lesquelles exercez-vous à ce jour ?"]
[]
[]
[]
[]
[null,"4- Indiquez le nombre d’heures hebdomadaires consacrées aux fonctions identifiées en question 3 : "]
[]
[null,"5- Structure au sein de laquelle vous pratiquez ces fonctions :"]
[]
[null,null,"Nom :"]
[null,null,"Adresse :"]
[]
[]
[null,"6- Depuis quelle date exercez-vous ces fonctions :"]
[]
[null,"7- Quel type de contrat de travail avez-vous pour ces fonctions :"]
[]
[]
[]
[]
[]
[]
[null,"8- Niveau du/des groupes encadrés dans ces fonctions :"]
[]
[]
[]
[]
[]
[]
[null,"9- Niveau de rémunération brute annuelle dans cette activité :"]
[]
[]
[]
[]
[]
[]
[null,"Vous ne pratiquez aucune autre activité en-dehors de celle décrite ci-dessus"]

{"sheet":"EDUCATEUR_P2","index":5,"n_rows":9,"n_cols":2,"rows_kept":9,"cut":false,"hidden":true,"merged":[[6,1,6,9]]}
[]
[]
[]
[]
[]
[]
[null,"AUTRE EXPERIENCE PROFESSIONNELLE"]
[]
[null,"1- Votre autre activité est-elle également dans le domaine de la natation?"]

{"sheet":"NON EDUCATEUR","index":6,"n_rows":37,"n_cols":3,"rows_kept":37,"cut":false,"hidden":true,"merged":[[5,1,5,9],[7,1,7,9],[9,1,9,9],[31,1,31,7],[24,1,24,9],[25,3,25,9],[26,3,26,9],[27,3,27,9],[29,1,29,4],[29,5,29,6],[16,1,16,7]]}
[]
[]
[]
[]
[]
[null,"Questionnaire relatif au suivi de l'insertion professionnelle avant l'obtention du diplôme (non éducateur)"]
[]
[null,"SITUATION ET EXPERIENCES PROFESSIONNELLES"]
[]
[null,"1-Quelle est votre activité principale à ce jour?"]
[]
[]
[]
[]
[]
[]
[null,"2- Nombre d’heures hebdomadaires dans cette activité principale :"]
[]
[null,"3- Quel est votre statut dans cette activité ?"]
[]
[]
[]
[]
[]
[null,"4- Structure au sein de laquelle vous pratiquez cette activité :"]
[null,null,"Nom :"]
[null,null,"Adresse :"]
[]
[]
[null,"5- Date de début De cette activité :"]
[]
[null,"6- Type de contrat de travail avez-vous pour cette activité :"]
[]
[]
[]
[]
[null,"7- Niveau de rémunération brute annuelle dans cette activité :"]

{"sheet":"FORMATION","index":7,"n_rows":44,"n_cols":2,"rows_kept":44,"cut":false,"hidden":true,"merged":[[5,1,5,9],[9,3,9,5],[12,3,12,5],[15,3,15,5],[18,3,18,5],[6,1,6,9],[17,1,17,7],[36,3,36,5],[39,3,39,5],[26,1,26,7],[32,1,32,7],[35,1,35,7],[38,1,38,7],[21,3,21,5],[24,3,24,5],[27,3,27,5],[30,3,30,5],[33,3,33,5]]}
[]
[]
[]
[]
[]
[null,"Liste des pièces à fournir pour l'entrée en formation Moniteur Sportif de Natation"]
[null,"ATTENTION : Une fois l'insertion validée (bouton Insérer à chaque étape) les copies se trouvent dans le document."]
[null,"Les jutificatifs sont acceptés sous le format JPEG"]
[null,"Licence de la saison en cours (max 150 Ko) :"]
[]
[]
[null,"Pièce nationale d'identité en cours de validité (max 150 Ko) :"]
[]
[]
[null,"Copie de l'ENF1-Sauv'nage (max 150 Ko) :"]
[]
[]
[null,"Copie de l'attestation du titre d'évaluateur ou d'assistant évaluateur ENF3 dans l'option choisie pour la formation  (max 150 Ko) :"]
[]
[]
[null,"Copie du PSE1 minimum ou de son équivalent (max 150 Ko) :"]
[]
[]
[null,"Le cas échéant, copie de l'attestation de formation continue (max 150 Ko) :"]
[]
[]
[null,"Lettre du président du club de la structure d'alternance précisant l'accord du stagiaire en formation (max 150 Ko) :"]
[]
[]
[null,"Engagement(s) du ou des tuteurs(s) (max 150 Ko) :"]
[]
[]
[null,"Certificat médical de moins de trois mois attestant de la capacité du candidat à suivre la formation (max 150 Ko) :"]
[]
[]
[null,"Attestation du DTN ou son représentant attestant du niveau de pratique OU copie du BF1 (max 150 Ko) :"]
[]
[]
[null,"Copie d'une attestation de réussite au test de sécurité datant de moins de 3 mois (max 150 Ko) :"]
[]
[]
[null,"2 chèques :"]
[null,"-> L'un de 15€ à l'ordre de l'INFAN-FFN couvrant les frais d'édition du diplôme ;"]
[null,"-> L'autre de 10€ à l'ordre de l'ERFAN afin d'instruire le suivi de cohorte ;"]

{"sheet":"EQUIVALENCE","index":8,"n_rows":46,"n_cols":4,"rows_kept":46,"cut":false,"hidden":true,"merged":[[41,3,41,5],[28,3,28,5],[17,7,19,7],[7,1,7,9],[26,1,26,9],[33,3,33,5],[35,3,35,5],[37,3,37,5],[5,1,5,9],[6,1,6,9],[31,1,31,9],[10,3,10,5],[13,3,13,5],[24,3,24,5]]}
[]
[]
[]
[]
[]
[null,"Liste des pièces à fournir dans le cadre d'une demande d'équivalence du Moniteur Sportif de Natation"]
[null,"POUR TOUS"]
[null,"ATTENTION : Un fois l'insertion validée (bouton Insérer à chaque étape) les copies se trouvent dans le document."]
[null,"Les jutificatifs sont acceptés sous le format JPEG"]
[null,"Licence de la saison en cours (max 150 Ko) :"]
[]
[]
[null,"Pièce nationale d'identité en cours de validité (max 150 Ko) :"]
[]
[]
[null,"Copie du diplôme permettant l'attribution de l'équivalence (max 150 Ko) :"]
[]
[null,null,null,"obtenu le :"]
[null,null,null,"obtenu le :"]
[null,null,null,"obtenu le :"]
[]
[]
[]
[]
[]
[]
[null,"EN COMPLEMENT POUR LES CANDIDATS SOLLICITANT UNE EQUIVALENCE AU TITRE DU BF AVEC UNE DATE INVALIDE"]
[null,"Attestation de formation continue du BF (uniquement si la date du diplôme n'est pas valide)"]
[]
[]
[]
[null,"EN COMPLEMENT POUR LES CANDIDATS SOLLICITANT UNE EQUIVALENCE AU TITRE DU DEJEPS OU DU DESJEPS"]
[null,"Copie du titre d'évaluateur ENF1 (max 150 Ko) :"]
[]
[null,"Copie du titre d'évaluateur ENF2 (max 150 Ko) :"]
[]
[null,"Copie du titre d'évaluateur ENF3 dans la discipline (max 150 Ko) :"]
[]
[]
[]
[null,"Copie du PSE1 à jour de sa formation continue (max 150 Ko) :"]
[]
[]
[null,"2 chèques :"]
[null,"-> L'un de 15€ à l'ordre de l'INFAN-FFN couvrant les frais d'édition du diplôme ;"]
[null,"-> L'autre de 10€ à l'ordre de l'ERFAN afin d'instruire le suivi de cohorte ;"]

{"sheet":"VAE","index":9,"n_rows":41,"n_cols":2,"rows_kept":41,"cut":false,"hidden":true,"merged":[[19,3,19,5],[5,1,5,9],[7,1,7,9],[10,3,10,5],[13,3,13,5],[16,3,16,5],[22,3,22,5],[25,3,25,5],[28,3,28,5],[34,3,34,5],[24,1,24,8],[27,1,27,8],[38,3,38,5],[42,3,42,5],[32,4,32,8],[36,4,36,8],[40,4,40,8]]}
[]
[]
[]
[]
[]
[null,"Liste des pièces à fournir dans le cadre d'une demande d'obtention du MSN par la VAE"]
[]
[null,"POUR TOUS"]
[null,"Les jutificatifs sont acceptés sous le format JPEG"]
[null,"Photocopie d'une pièce d'identité en cours de validité (max 150 Ko) :"]
[]
[]
[null,"Photocopie de la licence de la saison en cours (max 150 Ko) :"]
[]
[]
[null,"Photocopie du PSE1 à jour de sa formation continue (max 150 Ko) :"]
[]
[]
[null,"Photocopie justifiant du titre d'assistant évaluateur (max 150 Ko) :"]
[]
[]
[null,"Photocopie justifiant du titre d'évaluateur ENF3 (max 150 Ko) :"]
[]
[]
[null,"Une attestation du ou des Président(s) de clubs justifiant de l’expérience\ncorrespondante aux compétences visées dans le Moniteur Sportif de\nNatation et des 1680 heures réalisées au cours des 4 dernières années\nprécédant la demande (max 150 Ko) :"]
[]
[]
[null,"Si possible, une photocopie d’une certification en cours de validité\nattestant de la capacité à secourir une personne en difficulté dans l’eau (max 150 Ko) :"]
[]
[]
[null,"Une photocopie du ou des diplômes obtenus (à préciser)  (max 150 Ko) :"]
[]
[null,"Nom du premier diplôme :"]
[]
[]
[]
[null,"Nom du deuxième diplôme :"]
[]
[]
[]
[null,"Nom du troisième diplôme :"]

{"sheet":"FINALISATION FORMATION","index":10,"n_rows":49,"n_cols":5,"rows_kept":49,"cut":false,"hidden":true,"merged":[[18,3,18,9],[33,1,33,9],[26,2,26,9],[40,2,42,8],[49,2,51,8],[45,1,45,9],[28,2,28,9],[29,2,29,9],[18,1,18,2],[6,1,6,9],[14,1,14,2],[15,1,15,2],[17,1,17,2],[14,3,14,9],[15,3,15,9],[16,1,16,2],[16,3,16,9],[17,3,17,9]]}
[]
[]
[]
[]
[]
[]
[null,"PROCEDURE"]
[]
[null,"Votre inscription touche à sa fin."]
[]
[null,"Merci de choisir votre organisme de formation :"]
[]
[]
[]
[null,"Nom de la structure :"]
[null,"Nom du référent :"]
[null,"Téléphone du référent :"]
[null,"E-Mail du référent :"]
[null,"Adresse :"]
[]
[]
[null,"Pour continuer, vous devez procéder à la validation de votre demande d'inscription :"]
[]
[]
[]
[]
[]
[]
[null,"Etape 1:","Enregistrer ce document"]
[null,"Etape 2:","Envoyer cette candidature par mail à l'adresse indiquée sur le cadre des coordonnées de la structure (document Excel ET export PDF)."]
[]
[]
[]
[null,"RESERVE ORGANISME DE FORMATION"]
[]
[]
[]
[null,"Etape 1 :","Envoi d'un mail de confirmation auprès du candidat à la formation"]
[null,"Etape 2 :","15 jours après le positionnement, envoi du fichier à la FFN à l'adresse suivante : solene.lamballe@ffnatation.fr"]
[null,"Commentaires :"]
[]
[]
[]
[]
[]
[null,"RESERVE FFN"]
[]
[null,null,null,null,"Enregistrement de l'inscription dans la base Inscription formations"]
[null,"Commentaires :"]

{"sheet":"FINALISATION EQUIVALENCE","index":11,"n_rows":37,"n_cols":4,"rows_kept":37,"cut":false,"hidden":true,"merged":[[17,2,17,9],[6,1,6,9],[15,2,15,9],[37,2,39,8],[24,3,24,9],[25,1,25,2],[25,3,25,9],[18,2,18,9],[30,1,30,9],[21,1,21,2],[21,3,21,9],[22,1,22,2],[22,3,22,9],[23,1,23,2],[23,3,23,9],[24,1,24,2]]}
[]
[]
[]
[]
[]
[]
[null,"PROCEDURE"]
[]
[null,"Votre inscription touche à sa fin."]
[]
[null,"Pour continuer, vous devez procéder à la validation de votre demande d'inscription :"]
[]
[]
[]
[]
[]
[]
[null,"Etape 1 :","Enregistrer ce document"]
[null,"Etape 2 :","Envoyer cette candidature (Doc Excel ET Export PDF) par mail directement à l'INFAN qui confirmera votre inscription par retour de mail"]
[]
[null,"Coordonnées de l'INFAN :"]
[null,"Nom de la structure :",null,"INFAN"]
[null,"Nom du référent :",null,"Solène LAMBALLE"]
[null,"Télèphone du référent :",null,"01.41.83.87.67 "]
[null,"E-Mail du référent :",null,"solene.lamballe@ffnatation.fr"]
[null,"Adresse :",null,"Fédération Française de Natation\nINFAN\n14, rue Scandicci - 93508 Pantin Cedex"]
[]
[]
[]
[]
[null,"RESERVE FFN"]
[]
[]
[]
[null,"Etape 1 :","Confirmation de la réception"]
[null,"Etape 2 :","Enregistrement dans la base et information aux INFAN"]
[null,"Commentaires :"]

{"sheet":"FINALISATION VAE","index":12,"n_rows":57,"n_cols":3,"rows_kept":57,"cut":false,"hidden":true,"merged":[[57,2,59,8],[31,2,31,9],[35,1,35,9],[51,1,51,9],[21,1,21,9],[46,2,48,8],[18,1,18,2],[18,3,18,9],[19,1,19,2],[19,3,19,9],[30,2,30,9],[28,2,28,9],[17,1,17,2],[17,3,17,9],[6,1,6,9],[15,1,15,2],[15,3,15,9],[16,1,16,2],[16,3,16,9]]}
[]
[]
[]
[]
[]
[]
[null,"PROCEDURE"]
[]
[]
[null,"Votre inscription touche à sa fin."]
[]
[null,"Merci de choisir votre centre de formation :"]
[]
[]
[]
[null,"Nom de la structure :"]
[null,"Nom du référent :"]
[null,"Télèphone du référent :"]
[null,"E-Mail du référent :"]
[null,"Adresse :"]
[]
[null,"Il vous est également demandé un chèque à l’ordre de l’ERFAN sélectionné ci-dessus d’un montant de 35 euros couvrant les frais de dossier et les frais de gestion nationale du dossier et de fourniture du diplôme."]
[]
[null,"Pour continuer, vous devez procéder à la validation de votre demande d'inscription :"]
[]
[]
[]
[]
[]
[]
[null,"Etape 1 :","Enregistrer ce document"]
[null,"Etape 2 :","Envoyer cette candidature par mail à l'adresse indiquée sur le cadre des coordonnées de la structure (Doc Excel ET export PDF)"]
[]
[]
[]
[null,"RESERVE ORGANISME DE FORMATION"]
[]
[]
[]
[]
[]
[null,"Etape 1 :","Envoi d'un mail de confirmation auprès du candidat pour la validation de la partie 1"]
[null,"Etape 2 :","Envoi à la FFN de ce fichier (Partie 1 de la VAE) : solene.lamballe@ffnatation.fr"]
[null,"Etape 3 :","Réalisation avec le candidat et validationde la partie 2 de la VAE (hors outil ERFAN)"]
[null,"Etape 4 :","Envoi de la partie 2 à la FFN pour validation totale de la VAE : solene.lamballe@ffnatation.fr"]
[null,"Commentaires :"]
[]
[]
[]
[]
[]
[null,"RESERVE FFN"]
[]
[]
[null,"Etape 1 :","Réception et enregistrement vers la base VAE"]
[null,"Etape 2 :","Validation de la partie et de l'ensemble de la VAE pour délivrance du diplôme"]
[null,"Commentaires :"]

{"sheet":"J_LICENCE","index":13,"n_rows":0,"n_cols":0,"rows_kept":0,"cut":false,"hidden":true,"merged":[]}

{"sheet":"J_PIECEIDENTITE","index":14,"n_rows":0,"n_cols":0,"rows_kept":0,"cut":false,"hidden":true,"merged":[]}

{"sheet":"J_DIPLOMEEQUIVALENCE","index":15,"n_rows":0,"n_cols":0,"rows_kept":0,"cut":false,"hidden":true,"merged":[]}

{"sheet":"J_Assistant","index":16,"n_rows":0,"n_cols":0,"rows_kept":0,"cut":false,"hidden":true,"merged":[]}

{"sheet":"J_PSE1","index":17,"n_rows":0,"n_cols":0,"rows_kept":0,"cut":false,"hidden":true,"merged":[]}

{"sheet":"J_ATTESTATIONPRESIDENT","index":18,"n_rows":0,"n_cols":0,"rows_kept":0,"cut":false,"hidden":true,"merged":[]}

{"sheet":"J_ENF1","index":19,"n_rows":0,"n_cols":0,"rows_kept":0,"cut":false,"hidden":true,"merged":[]}

{"sheet":"J_ENF2","index":20,"n_rows":0,"n_cols":0,"rows_kept":0,"cut":false,"hidden":true,"merged":[]}

{"sheet":"J_ENF3","index":21,"n_rows":0,"n_cols":0,"rows_kept":0,"cut":false,"hidden":true,"merged":[]}

{"sheet":"J_FORMCONTINUE","index":22,"n_rows":0,"n_cols":0,"rows_kept":0,"cut":false,"hidden":true,"merged":[]}

{"sheet":"J_CERTIFICAT","index":23,"n_rows":0,"n_cols":0,"rows_kept":0,"cut":false,"hidden":true,"merged":[]}

{"sheet":"J_BF1","index":24,"n_rows":0,"n_cols":0,"rows_kept":0,"cut":false,"hidden":true,"merged":[]}

{"sheet":"J_SECURITE","index":25,"n_rows":0,"n_cols":0,"rows_kept":0,"cut":false,"hidden":true,"merged":[]}

{"sheet":"J_TUTEUR","index":26,"n_rows":0,"n_cols":0,"rows_kept":0,"cut":false,"hidden":true,"merged":[]}

{"sheet":"J_DIPLOME1","index":27,"n_rows":0,"n_cols":0,"rows_kept":0,"cut":false,"hidden":true,"merged":[]}

{"sheet":"J_DIPLOME2","index":28,"n_rows":0,"n_cols":0,"rows_kept":0,"cut":false,"hidden":true,"merged":[]}

{"sheet":"J_DIPLOME3","index":29,"n_rows":0,"n_cols":0,"rows_kept":0,"cut":false,"hidden":true,"merged":[]}

{"sheet":"PARAMETRES","index":30,"n_rows":6,"n_cols":1,"rows_kept":6,"cut":false,"hidden":true,"merged":[]}
[]
[]
[]
[]
[]
["AUTRE ACTIVITE"]

{"sheet":"STRUCTURES","index":31,"n_rows":31,"n_cols":14,"rows_kept":31,"cut":false,"hidden":true,"merged":[]}
["FORMATEUR","REGION","REFERENT 1","REFERENT 2","TELEPHONE 1","TELEPHONE 2","EMAIL 1","EMAIL 2","EMAIL 3","ADRESSE","Colonne1"]
[]
[{"$f":"\"Erfan \" & B3","v":"Erfan ALSACE"},"ALSACE","Denis WESTRICH",null,"03.89.59.30.98",null,"denis@westrich.net",null,null,"ERFAN Alsace Centre Haut Niveau FFN BP6\n68350 BRUNSTATT"]
["Erfan AQUITAINE","AQUITAINE","Annie DURRIEU",null,"05.56.98.77.34",null,"anniedurrieu@gmail.com",null,null,"161 rue Judaïque\n33000 BORDEAUX"]
["Erfan AUVERGNE","AUVERGNE","Hervé LEBAS\n",null,"04.70.31.85.59","06.88.33.04.73","cts@auvergnenatation.fr","secretariat.comite@auvergnenatation.fr",null,"Atrium - Pôle tertiaire d'activités\n03200 VICHY"]
["Erfan BOURGOGNE","BOURGOGNE","Séverine ROSSET","Christiane GUERIN","03.80.52.46.33",null,"ctsbourgogne@gmail.com","chr.guerin@orange.fr",null,"Parc tertiaire de Mirande - Bât B14 rue P. de Coubertin\n21000 DIJON"]
["Erfan BRETAGNE","BRETAGNE","Mathieu GUERIN",null,"02.99.67.03.58",null,"erfanbretagne@gmail.com",null,null,"9 rue Léo Lagrange\n35131 CHARTRES DE BRETAGNE"]
["Erafn CENTRE VAL DE LOIRE","CENTRE"," Magali JOURDAIN","Cécile DUCHATEAU","02.47.40.25.46",null,"erfan.centre@wanadoo.fr","cecileduchateau.ffncentre@orange.fr",null,"Maison des Sports de Touraine\n1,  rue de l'aviation\n37210 PARCAY MESLAY"]
[{"$f":"\"Erfan \" & B9","v":"Erfan CHAMPAGNE ARDENNE"},"CHAMPAGNE ARDENNE","Stéphane TICHON","Marc HANSSLER","03.26.70.58.59",null,"stephtichon@hotmail.fr","ctrnatation07@icloud.com","erfan.cr07@orange.fr","2 rue Grenet-Teillier\n51000 CHALONS EN CHAMPAGNE"]
["Erfan CORSE","CORSE","Michèle MELGRANI",null,"04.95.20.88.41","06.11.75.38.21","michele.melgrani@wanadoo.fr",null,null,"33 rue du Fiumorbu Lot Manicola Vecchia\n20167 MEZZAVIA"]
["Erfan COTE D'AZUR","COTE D'AZUR","André GLAISE","Jessica BAILLEUX","06.89.70.71.28","06.89.70.67.79","andre.glaise@gmail.com","engagementscrca@aol.com",null,"292 avenue de Cannes Les Ormes B\n06210 MANDELIEU LA NAPOULE"]
["Erfan DAUPHINE SAVOIE","DAUPHINE SAVOIE","Claire RIGOUX","Philippe CARRIER","04.76.51.71.88",null,"ERFAN DS <erfandauphinesavoie@gmail.com>","carrierphilippe@orange.fr",null,"Maison Départementale des Sports - 7 rue de l'industrie\n38 327 EYBEN Cedex"]
["Erfan FRANCHE COMTE","FRANCHE COMTE","Cyrille ADAM","Patrice LIBOZ","09.83.56.12.68","06.84.84.81.98","erfanfc@wanadoo.fr","pliboz@yahoo.fr",null,"Maison Régionale des Sports - 3 avenue Montboucons\n25000 BESANCON"]
["Erfan ILE DE FRANCE","ILE DE FRANCE","Carolle ANDRACA","Jérôme CHASTAGNER","01.40.31.19.20",null,"carolle.andraca@orange.fr","gestion@cif-natation.fr",null,"163 boulevard Mortier\n75020 PARIS"]
["Erfan LANGUEDOC ROUSSILLON","LANGUEDOC ROUSSILLON","Albane BOSC","Thierry JAMET","06.08.80.32.40","04.67.82.16.68","ffn.lang-rouss@wanadoo.fr","t.jamet@neuf.fr",null,"Maison Régionale des Sports - 1039 rue Georges Méliès\n34000 MONTPELLIER"]
["Erfan LIMOUSIN","LIMOUSIN","Guilhaine SEBILLOTTE","Anne CITERNE","05.87.21.31.58","06.84.74.57.24","natation.limousin.erfan@gmail.com","anne.citerne@orange.fr",null,"Maison Régionales des Sports du Limousin - 142 ave Emile Labussière\n87100 LIMOGES"]
["Erfan LORRAINE","LORRAINE","Romual MANGEONJEAN","Céline LEVERRIER","06.83.53.10.01",null,"directeur@lorraine-erfan.fr","ctr@lorraine-natation.fr",null,"Maison Régionale des Sports - 13 rue Jean Moulin\n54510 TOMBLAINE"]
["Erfan LYONNAIS","LYONNAIS","Céline ROUSTY",null,"04.78.83.13.99",null,"comiteloyonnais.natation@wanadoo.fr","celinerousty.ctslyonnais@yahoo.fr",null,"Bât 5 - 24 avenue Joannes Masset\n69009 LYON"]
["Erfan NORD PAS DE CALAIS","NORD PAS DE CALAIS","Emmanuelle ABGRALL","Benjamin TRANCHARD","06.77.27.79.98",null,"erfan59-62@wanadoo.fr","benjamin.tranchard@outlook.fr",null,"Château Vanderheegen - 72 rue Nationale\n59700 MARCQ EN BAROEUL"]
["Erfan NORMANDIE","NORMANDIE","Frédérique CROCHARD",null,"02.31.75.04.19","06.82.84.23.21","frederiquecrochard@hotmail.fr",null,null,"Péricentre 4 - 147 rue de la Délivrande\n14000 CAEN"]
[{"$f":"\"Erfan \" & B21","v":"Erfan PAYS DE LA LOIRE"},"PAYS DE LA LOIRE","Christophe BODIN","Maurice BEUNET","02.51.13.48.80",null,"erfan.paysdeloire@orange.fr","maurice.beunet@wanadoo.fr",null,"13 rue Gustave Eiffel\n44300 NANTES"]
["Erfan PICARDIE","PICARDIE","Séverine FREIN",null,"03.22.33.50.66",null,"erfan@ffnpicardie.com",null,null,"103 route d'Abbeville\n80000 AMIENS"]
["Erfan POITOU CHARENTES","POITOU CHARENTES","Philippe BARRIERE","Yvelise FLEURIS","05.49.46.10.17",null,"philippebarriere@sfr.fr","poitoucharentes.natation@gmail.com",null,"2 allée de Chenevière - Apt 24\n86000 POITIERS","FLEURIS Yvelise",null,546075258,665066742]
["Erfan PROVENCE","PROVENCE","EYME Sandrine","Anne VIAL","04.91.49.20.77","06.10.13.76.85","s.eyme@natation-provence.org","a.vial@natation-provence.org","comite@natation-provence.org","2 boulevard Françoise du Parc\n13002 MARSEILLE"]
["Erfan MIDY PYRENEES","MIDY PYRENEES","Cédric BENACQUISTA","François HUOT MARCHAND","05.61.62.61.92",null,"ced.bena@gmail.com","francois@mpffn.fr","erfan@mpffn.fr","72 rue Riquet - Bât B Boite à lettres 37\n31000 TOULOUSE"]
["Erfan NOUVELLE CALEDONIE","NOUVELLE CALEDONIE","Patrick DREANO",null,null,null,"dreanopatrick@club-internet.fr",null,null,"BP 2836\n98846 NOUMEA Cedex"]
["Erfan GUADELOUPE","GUADELOUPE","Pierre AMARDEILH",null,"05.90.47.15.60",null,"pierre.amardeilh1@orange.fr",null,null,"Bât administratif Piscine intercommunale de Dugazon\n97139 ABYMES"]
["Erfan MARTINIQUE","MARTINIQUE","Marc LAZZARO",null,"05.96.61.57.49",null,"marc.lazzaro@googlemail.com",null,null,"Crosma Maison des Sports Pointe de la Vierge\n97200 FORT DE France"]
["Erfan GUYANE","GUYANE","Patrick CESAIRE","François MANDE",null,null,"cesairepatrick@hotmail.fr","corenatguy@wanadoo.fr",null,"BP719 \n97336 CAYENNE Cedex"]
["Erfan LA REUNION","LA REUNION","Franck SCHOTT","Nicolas PAYET LEBOURGES",null,null,"franck.schott@gmail.com","nicopay@gmail.com",null,"CROS - BP335\n94494 SAINTE CLOTILDE Cedex"]
["INFAN","France","Solène LAMBALLE",null,"01.41.83.87.67 ",null,"solene.lamballe@ffnatation.fr",null,null,"Fédération Française de Natation\nINFAN\n14, rue Scandicci - 93508 Pantin Cedex"]